bitfinex-derivatives/quotes_BNBF0:USTF0_20250529
["timestamp","ask_amount","ask_price","bid_price","bid_amount"]
[1748504468895,0.29188132,685.21,684.59,0.426]
[1748504469092,0.29188132,685.21,684.59,0.88513595]
[1748504469296,0.29188132,685.21,684.59,0.426]
[1748504472001,0.29188132,685.21,684.6,0.406]
[1748504507433,0.29188132,685.21,684.61,0.384]
[1748504511339,0.29188132,685.21,684.62,0.471]
[1748504537561,0.29188132,685.21,684.61,0.384]
[1748504540458,0.29188132,685.21,684.14,0.45913595]
[1748504541162,0.29188132,685.21,682.64,0.93740256]
[1748504541163,0.29188132,685.21,684.15,0.376]
[1748504541762,0.29188132,685.21,684.18,0.45913595]
[1748504543159,0.29188132,685.21,684.19,0.356]
[1748504543559,0.29188132,685.21,684.42,0.45913595]
[1748504544164,0.29188132,685.21,684.53,0.45913595]
[1748504544863,0.29188132,685.21,684.54,0.45913595]
[1748504545065,0.29188132,685.21,684.51,0.45913595]
[1748504545563,0.29188132,685.21,684.52,0.45913595]
[1748504545763,0.29188132,685.21,684.23,0.45913595]
[1748504546064,0.29188132,685.21,684.24,0.45913595]
[1748504546763,0.29188132,685.21,684.2,0.45913595]
[1748504547064,0.29188132,685.21,684.21,0.45913595]
[1748504548460,0.29188132,685.21,684.2,0.45913595]
[1748504549662,0.29188132,685.21,684.19,0.356]
[1748504554968,0.29188132,685.21,684.26,0.45913595]
[1748504555162,0.29188132,685.21,684.27,0.45913595]
[1748504555963,0.29188132,685.21,684.35,0.45913595]
[1748504556867,0.29188132,685.21,684.19,0.356]
[1748504557264,0.29188132,685.21,684.2,0.447]
[1748504575577,0.29188132,685.21,684.19,0.356]
[1748504577577,0.29188132,685.21,684.24,0.45913595]
[1748504577781,0.29188132,685.21,684.27,0.45913595]
[1748504578282,0.29188132,685.21,684.28,0.307]
[1748504579979,0.29188132,685.21,684.29,0.45913595]
[1748504580384,0.29188132,685.21,684.33,0.45913595]
[1748504580981,0.29188132,685.21,684.28,0.307]
[1748504581286,0.29188132,685.21,684.35,0.46236682]
[1748504581486,0.29188132,685.21,684.36,0.46236682]
[1748504582487,0.29188132,685.21,684.39,0.46236682]
[1748504582887,0.29188132,685.21,684.41,0.46236682]
[1748504583183,0.29188132,685.21,684.38,0.46236682]
[1748504583384,0.29188132,685.21,684.39,0.46236682]
[1748504585385,0.29188132,685.21,684.4,0.46236682]
[1748504585786,0.29188132,685.21,684.39,0.46236682]
[1748504586189,0.29188132,685.21,684.36,0.46236682]
[1748504586385,0.29188132,685.21,684.4,0.368]
[1748504593687,0.29188132,685.21,684.41,0.363]
[1748504600896,0.29188132,685.21,684.42,0.345]
[1748504616308,0.29188132,685.21,684.45,0.46236682]
[1748504616712,0.29188132,685.21,684.5,0.46236682]
[1748504617113,0.29188132,685.21,684.42,0.345]
[1748504618910,0.29188132,685.21,684.41,0.363]
[1748504620912,0.29188132,685.21,684.42,0.34]
[1748504640627,0.29188132,685.21,684.48,0.46236682]
[1748504640828,0.29188132,685.21,684.51,0.46236682]
[1748504641928,0.29188132,685.21,684.5,0.46236682]
[1748504642928,0.29188132,685.21,684.48,0.46236682]
[1748504643226,0.29188132,685.21,684.49,0.46236682]
[1748504643923,0.29188132,685.21,684.51,0.46236682]
[1748504645030,0.29188132,685.21,684.5,0.46236682]
[1748504645330,0.29188132,685.21,684.51,0.46236682]
[1748504646127,0.29188132,685.21,684.53,0.46236682]
[1748504646526,0.29188132,685.21,684.61,0.46236682]
[1748504646828,0.29188132,685.21,684.45,0.46236682]
[1748504647231,0.29188132,685.21,684.46,0.352]
[1748504648234,0.29188132,685.21,684.47,0.46236682]
[1748504648930,0.29188132,685.21,684.48,0.46236682]
[1748504650233,0.29188132,685.21,684.46,0.81436682]
[1748504651736,0.29188132,685.21,684.47,0.46236682]
[1748504652738,0.29188132,685.21,684.49,0.46236682]
[1748504653434,0.29188132,685.21,684.46,0.352]
[1748504656542,0.29188132,685.21,684.54,0.46236682]
[1748504658941,0.29188132,685.21,684.58,0.46236682]
[1748504659445,0.29188132,685.21,684.46,0.352]
[1748504664747,0.29188132,685.21,684.47,0.302]
[1748504681767,0.29188132,685.21,684.46,0.352]
[1748504683468,0.29188132,685.21,684.47,0.468]
[1748504703386,0.29188132,685.21,684.54,0.46236682]
[1748504704387,0.29188132,685.21,684.55,0.366]
[1748504715698,0.29188132,685.21,684.56,0.488]
[1748504721103,0.29188132,685.21,684.57,0.343]
[1748504724201,0.29188132,685.21,684.57,0.80536682]
[1748504725106,0.29188132,685.21,684.67,0.46236682]
[1748504725306,0.29188132,685.21,684.7,0.46236682]
[1748504725807,0.29188132,685.21,684.72,0.46236682]
[1748504727911,0.29188132,685.21,684.6,0.46236682]
[1748504728910,0.29188132,685.21,684.57,0.343]
[1748504728911,0.29188132,685.21,684.59,0.46236682]
[1748504732214,0.29188132,685.21,684.57,0.343]
[1748504742128,0.29188132,685.21,684.56,0.488]
[1748504744827,0.29188132,685.21,684.57,0.469]
[1748504749928,0.29188132,685.21,684.57,0.93136682]
[1748504750625,0.29188132,685.21,684.57,0.469]
[1748504759533,0.29188132,685.21,684.58,0.442]
[1748504771535,0.29188132,685.21,684.57,0.469]
[1748504773945,0.29188132,685.21,684.58,0.423]
[1748504776746,0.29188132,685.21,684.64,0.46236682]
[1748504777841,0.29188132,685.21,684.58,0.423]
[1748504778950,0.29188132,685.21,684.58,0.88536682]
[1748504779250,0.29188132,685.21,684.61,0.46236682]
[1748504779644,0.29188132,685.21,684.58,0.423]
[1748504789651,0.29188132,685.21,684.59,0.303]
[1748504800558,0.29188132,685.21,684.7,0.46236682]
[1748504801260,0.29188132,685.21,684.71,0.46236682]
[1748504801562,0.29188132,685.21,684.59,0.76536682]
[1748504802163,0.29188132,685.21,684.6,0.46236682]
[1748504803064,0.29188132,685.21,684.59,0.303]
[1748504809767,0.29188132,685.21,684.58,0.423]
[1748504809968,0.29188132,685.21,684.44,0.46236682]
[1748504810168,0.29188132,685.21,683.79,0.46236682]
[1748504810169,0.29188132,685.21,684.53,0.46236682]
[1748504810871,0.29188132,685.21,684.33,0.46236682]
[1748504811377,0.29188132,685.21,684.34,0.46236682]
[1748504812272,0.29188132,685.21,684.35,0.47]
[1748504812667,0.29188132,685.21,684.36,0.368]
[1748504817675,0.29188132,685.21,684.54,0.46236682]
[1748504818878,0.29188132,685.21,684.36,0.368]
[1748504831599,0.29188132,685.21,684.4,0.46236682]
[1748504834401,0.29188132,685.21,684.41,0.46236682]
[1748504834597,0.29188132,685.21,684.44,0.46236682]
[1748504835100,0.29188132,685.21,684.43,0.46236682]
[1748504835400,0.29188132,685.21,684.5,0.46236682]
[1748504836397,0.29188132,685.21,684.36,0.368]
[1748504836600,0.29188132,685.21,684.41,0.46236682]
[1748504836799,0.29188132,685.21,684.36,0.368]
[1748504838304,0.29188132,685.21,684.36,0.83036682]
[1748504838504,0.29188132,685.21,684.36,0.368]
[1748504846606,0.29188132,685.21,684.38,0.46236682]
[1748504847405,0.29188132,685.21,684.41,0.46236682]
[1748504847809,0.29188132,685.21,684.38,0.46236682]
[1748504848111,0.29188132,685.21,684.39,0.46236682]
[1748504848309,0.29188132,685.21,684.52,0.46236682]
[1748504848711,0.29188132,685.21,684.36,0.368]
[1748504848712,0.29188132,685.21,684.54,0.46236682]
[1748504849110,0.29188132,685.21,684.55,0.46236682]
[1748504849912,0.29188132,685.21,684.57,0.46236682]
[1748504850210,0.29188132,685.21,684.56,0.46236682]
[1748504850510,0.29188132,685.21,684.57,0.46236682]
[1748504851615,0.29188132,685.21,684.45,0.46236682]
[1748504852313,0.29188132,685.21,684.42,0.46236682]
[1748504853314,0.29188132,685.21,684.36,0.83036682]
[1748504853706,0.29188132,685.21,684.37,0.49]
[1748504853908,0.29188132,685.21,684.39,0.46236682]
[1748504854907,0.29188132,685.21,684.37,0.49]
[1748504858214,0.29188132,685.21,684.38,0.381]
[1748504863416,0.29188132,685.21,684.4,0.46236682]
[1748504864617,0.29188132,685.21,684.41,0.46236682]
[1748504865021,0.29188132,685.21,684.54,0.46236682]
[1748504867824,0.29188132,685.21,684.55,0.46236682]
[1748504868021,0.29188132,685.21,684.56,0.46236682]
[1748504868225,0.29188132,685.21,684.57,0.46236682]
[1748504868421,0.29188132,685.21,684.59,0.46236682]
[1748504868826,0.29188132,685.21,684.62,0.46236682]
[1748504869529,0.29188132,685.21,684.63,0.46236682]
[1748504870427,0.29188132,685.21,684.62,0.46236682]
[1748504870927,0.29188132,685.21,684.61,0.46236682]
[1748504871423,0.29188132,685.21,684.65,0.46236682]
[1748504871826,0.29188132,685.21,684.75,0.46236682]
[1748504872227,0.29188132,685.21,684.64,0.46236682]
[1748504872829,0.29188132,685.21,684.38,0.381]
[1748504872830,0.29188132,685.21,684.65,0.46236682]
[1748504874329,0.29188132,685.21,684.66,0.46236682]
[1748504874531,0.29188132,685.21,684.54,0.46236682]
[1748504874929,0.29188132,685.21,684.55,0.46236682]
[1748504876230,0.29188132,685.21,684.38,0.381]
[1748504876231,0.29188132,685.21,684.53,0.46236682]
[1748504877135,0.29188132,685.21,684.54,0.46236682]
[1748504877531,0.29188132,685.21,684.45,0.46236682]
[1748504878632,0.29188132,685.21,684.46,0.393]
[1748504905250,0.29188132,685.21,684.48,0.46269753]
[1748504906250,0.29188132,685.21,684.52,0.46269753]
[1748504906852,0.29188132,685.21,684.53,0.46269753]
[1748504907053,0.29188132,685.21,684.57,0.46269753]
[1748504907252,0.29188132,685.21,684.56,0.46269753]
[1748504907754,0.29188132,685.21,684.57,0.46269753]
[1748504907954,0.29188132,685.21,684.59,0.46269753]
[1748504909253,0.29188132,685.21,684.53,0.46269753]
[1748504910654,0.29188132,685.21,684.5,0.46269753]
[1748504910855,0.29188132,685.21,684.46,0.393]
[1748504911758,0.29188132,685.21,684.47,0.444]
[1748504912354,0.29188132,685.21,684.51,0.46269753]
[1748504912753,0.29188132,685.21,684.47,0.444]
[1748504917460,0.29188132,685.21,684.48,0.477]
[1748504926566,0.29188132,685.21,684.55,0.46269753]
[1748504926769,0.29188132,685.21,684.57,0.46269753]
[1748504926970,0.29188132,685.21,684.58,0.46269753]
[1748504927165,0.29188132,685.21,684.63,0.46269753]
[1748504927566,0.29188132,685.21,684.59,0.88869753]
[1748504927767,0.29188132,685.21,684.59,0.426]
[1748504931471,0.29188132,685.21,684.6,0.459]
[1748504940878,0.29188132,685.21,684.6,0.92169753]
[1748504941077,0.29188132,685.21,684.6,0.459]
[1748504941677,0.29188132,685.21,684.6,0.92169753]
[1748504942978,0.29188132,685.21,684.6,0.459]
[1748504953385,0.29188132,685.21,684.59,0.426]
[1748504956085,0.29188132,685.21,684.6,0.428]
[1748504978000,0.29188132,685.21,684.61,0.374]
[1748504996913,0.29188132,685.21,684.62,0.409]
[1748505012027,0.29188132,685.21,684.61,0.374]
[1748505013925,0.29188132,685.21,684.62,0.48]
[1748505037746,0.29188132,685.21,684.63,0.382]
[1748505055556,0.29188132,685.21,684.64,0.377]
[1748505061859,0.29188132,685.21,684.65,0.392]
[1748505071267,0.29188132,685.21,684.66,0.46269753]
[1748505071869,0.29188132,685.21,684.67,0.46269753]
[1748505074567,0.29188132,685.21,684.68,0.46269753]
[1748505075265,0.29188132,685.21,684.66,0.46269753]
[1748505075670,0.29188132,685.21,684.65,0.392]
[1748505098287,0.29188132,685.21,684.66,0.427]
[1748505112799,0.29188132,685.21,684.67,0.444]
[1748505144636,0.29188132,685.21,684.68,0.394]
[1748505153444,0.29188132,685.21,684.69,0.398]
[1748505157347,0.29188132,685.21,684.7,0.383]
[1748505169253,0.29188132,685.21,684.69,0.398]
[1748505171949,0.29188132,685.21,684.7,0.417]
[1748505205890,0.29188132,685.21,684.69,0.398]
[1748505207391,0.29188132,685.21,684.7,0.346]
[1748505211594,0.29188132,685.21,684.71,0.404]
[1748505227696,0.29188132,685.21,684.7,0.346]
[1748505230598,0.29188132,685.21,684.71,0.479]
[1748505243111,0.29188132,685.21,684.72,0.385]
[1748505266137,0.29188132,685.21,684.71,0.479]
[1748505268540,0.29188132,685.21,684.72,0.297]
[1748505300553,0.29188132,685.21,684.07,0.25402294]
[1748505300960,0.29188132,685.21,684.07,0.71520098]
[1748505301259,0.29188132,685.21,684.08,0.46117804]
[1748505302256,0.29188132,685.21,684.09,0.46117804]
[1748505302461,0.29188132,685.21,684.1,0.46117804]
[1748505302662,0.29188132,685.21,684.1,0.83917804]
[1748505303460,0.29188132,685.21,684.12,0.46117804]
[1748505304759,0.29188132,685.21,684.13,0.46117804]
[1748505304964,0.29188132,685.21,684.17,0.46117804]
[1748505305357,0.29188132,685.21,684.18,0.46117804]
[1748505305661,0.29188132,685.21,684.1,0.378]
[1748505305662,0.29188132,685.21,684.19,0.46117804]
[1748505306060,0.29188132,685.21,684.17,0.46117804]
[1748505306661,0.29188132,685.21,684.13,0.46117804]
[1748505307265,0.29188132,685.21,684.11,0.46117804]
[1748505308566,0.29188132,685.21,684.16,0.46117804]
[1748505308767,0.29188132,685.21,684.18,0.46117804]
[1748505310163,0.29188132,685.21,684.19,0.46117804]
[1748505310363,0.29188132,685.21,684.24,0.46117804]
[1748505310869,0.29188132,685.21,684.25,0.46117804]
[1748505311869,0.29188132,685.21,684.1,0.378]
[1748505311870,0.29188132,685.21,684.27,0.46117804]
[1748505312472,0.29188132,685.21,684.25,0.46117804]
[1748505316574,0.29188132,685.21,684.31,0.46117804]
[1748505317171,0.29188132,685.21,684.35,0.46117804]
[1748505317475,0.29188132,685.21,684.36,0.46117804]
[1748505318275,0.29188132,685.21,684.37,0.46117804]
[1748505318675,0.29188132,685.21,684.46,0.46117804]
[1748505319674,0.29188132,685.21,684.47,0.46117804]
[1748505320072,0.29188132,685.21,684.41,0.46117804]
[1748505321476,0.29188132,685.21,684.43,0.46117804]
[1748505321678,0.29188132,685.21,684.39,0.46117804]
[1748505321976,0.29188132,685.21,684.4,0.46117804]
[1748505322370,0.29188132,685.21,684.44,0.46117804]
[1748505323175,0.29188132,685.21,684.46,0.46117804]
[1748505324076,0.29188132,685.21,684.48,0.46117804]
[1748505324277,0.29188132,685.21,684.34,0.46117804]
[1748505324874,0.29188132,685.21,684.33,0.46117804]
[1748505325283,0.29188132,685.21,684.25,0.46117804]
[1748505326479,0.29188132,685.21,684.18,0.46117804]
[1748505327284,0.29188132,685.21,684.17,0.46117804]
[1748505327485,0.29188132,685.21,684.12,0.46117804]
[1748505327685,0.29188132,685.21,684.11,0.46117804]
[1748505328081,0.29188132,685.21,684.07,0.25402294]
[1748505329585,0.29188132,685.21,684.08,0.396]
[1748505336691,0.29188132,685.21,684.08,0.85717804]
[1748505337490,0.29188132,685.21,684.13,0.46117804]
[1748505337689,0.29188132,685.21,684.15,0.46117804]
[1748505338393,0.29188132,685.21,684.16,0.46117804]
[1748505339288,0.29188132,685.21,684.17,0.46117804]
[1748505339490,0.29188132,685.21,684.2,0.46117804]
[1748505339690,0.29188132,685.21,684.17,0.46117804]
[1748505340489,0.29188132,685.21,684.15,0.46117804]
[1748505340694,0.29188132,685.21,684.14,0.46117804]
[1748505341495,0.29188132,685.21,684.13,0.46117804]
[1748505344794,0.29188132,685.21,684.14,0.46117804]
[1748505345498,0.29188132,685.21,684.15,0.46117804]
[1748505345895,0.29188132,685.21,684.08,0.396]
[1748505345896,0.29188132,685.21,684.19,0.46117804]
[1748505346501,0.29188132,685.21,684.18,0.46117804]
[1748505348697,0.29188132,685.21,684.19,0.46117804]
[1748505348901,0.29188132,685.21,684.2,0.46117804]
[1748505349596,0.29188132,685.21,684.08,0.396]
[1748505349597,0.29188132,685.21,684.24,0.46117804]
[1748505349802,0.29188132,685.21,684.26,0.46117804]
[1748505350398,0.29188132,685.21,684.32,0.46117804]
[1748505350902,0.29188132,685.21,684.3,0.46117804]
[1748505351403,0.29188132,685.21,684.38,0.46117804]
[1748505352704,0.29188132,685.21,684.39,0.46117804]
[1748505352905,0.29188132,685.21,684.31,0.46117804]
[1748505353106,0.29188132,685.21,684.23,0.46117804]
[1748505353404,0.29188132,685.21,684.24,0.46117804]
[1748505354101,0.29188132,685.21,684.08,0.396]
[1748505354102,0.29188132,685.21,684.19,0.46117804]
[1748505354305,0.29188132,685.21,684.18,0.46117804]
[1748505354502,0.29188132,685.21,684.19,0.46117804]
[1748505355313,0.29188132,685.21,684.11,0.46117804]
[1748505355506,0.29188132,685.21,684.08,0.396]
[1748505355507,0.29188132,685.21,684.12,0.46117804]
[1748505356305,0.29188132,685.21,684.08,0.85717804]
[1748505356708,0.29188132,685.21,684.09,0.46117804]
[1748505357406,0.29188132,685.21,684.08,0.85717804]
[1748505359004,0.29188132,685.21,684.08,0.396]
[1748505364213,0.29188132,685.21,684.11,0.46117804]
[1748505364407,0.29188132,685.21,684.09,0.46117804]
[1748505364612,0.29188132,685.21,684.08,0.396]
[1748505365108,0.29188132,685.21,684.11,0.46117804]
[1748505365512,0.29188132,685.21,684.12,0.46117804]
[1748505365913,0.29188132,685.21,684.14,0.46117804]
[1748505366313,0.29188132,685.21,684.17,0.46117804]
[1748505366709,0.29188132,685.21,684.14,0.46117804]
[1748505367211,0.29188132,685.21,684.15,0.46117804]
[1748505367613,0.29188132,685.21,684.16,0.46117804]
[1748505368014,0.29188132,685.21,684.08,0.396]
[1748505368015,0.29188132,685.21,684.15,0.46117804]
[1748505368314,0.29188132,685.21,684.12,0.46117804]
[1748505368613,0.29188132,685.21,684.14,0.46117804]
[1748505369113,0.29188132,685.21,684.2,0.46117804]
[1748505369713,0.29188132,685.21,684.21,0.46117804]
[1748505370212,0.29188132,685.21,684.17,0.46117804]
[1748505370613,0.29188132,685.21,684.08,0.396]
[1748505370614,0.29188132,685.21,684.21,0.46117804]
[1748505371409,0.29188132,685.21,684.23,0.46117804]
[1748505371609,0.29188132,685.21,684.17,0.46117804]
[1748505372512,0.29188132,685.21,684.18,0.46117804]
[1748505373519,0.29188132,685.21,684.19,0.46117804]
[1748505374314,0.29188132,685.21,684.24,0.46117804]
[1748505375015,0.29188132,685.21,682.98,0.55341364]
[1748505375016,0.29188132,685.21,684.2,0.46117804]
[1748505375219,0.29188132,685.21,684.21,0.46117804]
[1748505376222,0.29188132,685.21,684.22,0.401]
[1748505380021,0.29188132,685.21,684.25,0.46117804]
[1748505380519,0.29188132,685.21,684.22,0.86217804]
[1748505381123,0.29188132,685.21,684.22,0.401]
[1748505391726,0.29188132,685.21,684.22,0.86217804]
[1748505391927,0.29188132,685.21,684.28,0.46117804]
[1748505392132,0.29188132,685.21,684.3,0.46117804]
[1748505393134,0.29188132,685.21,684.29,0.46117804]
[1748505393835,0.29188132,685.21,684.22,0.401]
[1748505400337,0.29188132,685.21,684.0,0.25411198]
[1748505401930,0.29188132,685.21,684.01,0.481]
[1748505403033,0.29188132,685.21,684.08,0.46117804]
[1748505403237,0.29188132,685.21,684.11,0.46117804]
[1748505403637,0.29188132,685.21,684.28,0.46117804]
[1748505403837,0.29188132,685.21,684.37,0.46117804]
[1748505404039,0.29188132,685.21,684.38,0.46117804]
[1748505404837,0.29188132,685.21,684.45,0.46117804]
[1748505405138,0.29188132,685.21,684.47,0.46117804]
[1748505405738,0.29188132,685.21,684.46,0.46117804]
[1748505406037,0.29188132,685.21,684.47,0.46117804]
[1748505406233,0.29188132,685.21,684.46,0.46117804]
[1748505406438,0.29188132,685.21,684.38,0.46117804]
[1748505406645,0.29188132,685.21,684.32,0.46117804]
[1748505407939,0.29188132,685.21,684.27,0.46117804]
[1748505411240,0.29188132,685.21,684.21,0.46117804]
[1748505411440,0.29188132,685.21,684.2,0.46117804]
[1748505413044,0.29188132,685.21,684.21,0.46117804]
[1748505413949,0.29188132,685.21,684.22,0.46117804]
[1748505415150,0.29188132,685.21,684.21,0.46117804]
[1748505416048,0.29188132,685.21,684.14,0.46117804]
[1748505416447,0.29188132,685.21,684.16,0.46117804]
[1748505416646,0.29188132,685.21,684.19,0.46117804]
[1748505417847,0.29188132,685.21,684.22,0.46117804]
[1748505419654,0.29188132,685.21,684.24,0.46117804]
[1748505420653,0.29188132,685.21,684.22,0.46117804]
[1748505421053,0.29188132,685.21,684.27,0.46117804]
[1748505421653,0.29188132,685.21,684.28,0.46117804]
[1748505422353,0.29188132,685.21,684.29,0.46117804]
[1748505422554,0.29188132,685.21,684.33,0.46117804]
[1748505424652,0.29188132,685.21,684.35,0.46117804]
[1748505424955,0.29188132,685.21,684.36,0.46117804]
[1748505425856,0.29188132,685.21,684.49,0.46117804]
[1748505426656,0.29188132,685.21,684.39,0.46117804]
[1748505427158,0.29188132,685.21,684.43,0.46117804]
[1748505429857,0.29188132,685.21,684.36,0.46117804]
[1748505430659,0.29188132,685.21,684.01,0.481]
[1748505430660,0.29188132,685.21,684.4,0.46117804]
[1748505431058,0.29188132,685.21,684.36,0.46117804]
[1748505431658,0.29188132,685.21,684.09,0.46117804]
[1748505431858,0.29188132,685.21,684.04,0.46117804]
[1748505432058,0.29188132,685.21,684.06,0.46117804]
[1748505432361,0.29188132,685.21,684.05,0.46117804]
[1748505433162,0.29188132,685.21,684.03,0.46117804]
[1748505434261,0.29188132,685.21,684.02,0.46117804]
[1748505434659,0.29188132,685.21,684.03,0.46117804]
[1748505435161,0.29188132,685.21,684.04,0.307]
[1748505439568,0.29188132,685.21,684.04,0.76817804]
[1748505439762,0.29188132,685.21,684.07,0.46117804]
[1748505441360,0.29188132,685.21,684.18,0.46117804]
[1748505441558,0.29188132,685.21,684.04,0.307]
[1748505441559,0.29188132,685.21,684.24,0.46117804]
[1748505441765,0.29188132,685.21,684.26,0.46117804]
[1748505441966,0.29188132,685.21,684.36,0.46117804]
[1748505442161,0.29188132,685.21,684.37,0.46117804]
[1748505442961,0.29188132,685.21,684.41,0.46117804]
[1748505443164,0.29188132,685.21,684.4,0.46117804]
[1748505443362,0.29188132,685.21,684.41,0.46117804]
[1748505445662,0.29188132,685.21,684.36,0.46117804]
[1748505446464,0.29188132,685.21,684.04,0.307]
[1748505446465,0.29188132,685.21,684.35,0.46117804]
[1748505446761,0.29188132,685.21,684.38,0.46117804]
[1748505446962,0.29188132,685.21,684.45,0.46117804]
[1748505447666,0.29188132,685.21,684.44,0.46117804]
[1748505447867,0.29188132,685.21,684.39,0.46117804]
[1748505448066,0.29188132,685.21,684.38,0.46117804]
[1748505448267,0.29188132,685.21,684.37,0.46117804]
[1748505448667,0.29188132,685.21,684.4,0.46117804]
[1748505449064,0.29188132,685.21,684.42,0.46117804]
[1748505449263,0.29188132,685.21,684.41,0.46117804]
[1748505449465,0.29188132,685.21,684.42,0.46117804]
[1748505449765,0.29188132,685.21,684.44,0.46117804]
[1748505450266,0.29188132,685.21,684.43,0.46117804]
[1748505450469,0.29188132,685.21,684.39,0.46117804]
[1748505451068,0.29188132,685.21,684.35,0.46117804]
[1748505451569,0.29188132,685.21,684.34,0.46117804]
[1748505452469,0.29188132,685.21,684.28,0.46117804]
[1748505453267,0.29188132,685.21,684.31,0.46117804]
[1748505453468,0.29188132,685.21,684.3,0.46117804]
[1748505453869,0.29188132,685.21,684.31,0.46117804]
[1748505454170,0.29188132,685.21,684.33,0.46117804]
[1748505455075,0.29188132,685.21,684.28,0.46117804]
[1748505455668,0.29188132,685.21,684.3,0.46117804]
[1748505456071,0.29188132,685.21,684.29,0.46117804]
[1748505457399,0.29188132,685.21,684.27,0.46117804]
[1748505458197,0.29188132,685.21,684.26,0.46117804]
[1748505458404,0.29188132,685.21,684.32,0.46117804]
[1748505459008,0.29188132,685.21,684.29,0.46117804]
[1748505460204,0.29188132,685.21,684.28,0.81017804]
[1748505462809,0.29188132,685.21,684.28,0.349]
[1748505463909,0.29188132,685.21,684.28,0.81017804]
[1748505466208,0.29188132,685.21,684.28,0.349]
[1748505485395,0.29188132,685.21,684.35,0.46117804]
[1748505485690,0.29188132,685.21,684.36,0.46117804]
[1748505485892,0.29188132,685.21,684.37,0.46117804]
[1748505486098,0.29188132,685.21,684.33,0.46117804]
[1748505486297,0.29188132,685.21,684.28,0.349]
[1748505486298,0.29188132,685.21,684.35,0.46117804]
[1748505486698,0.29188132,685.21,684.28,0.349]
[1748505487803,0.29188132,685.21,684.31,0.46117804]
[1748505490298,0.29188132,685.21,684.29,0.46117804]
[1748505491998,0.29188132,685.21,684.28,0.349]
[1748505492202,0.29188132,685.21,684.29,0.46117804]
[1748505493004,0.29188132,685.21,684.32,0.46117804]
[1748505493499,0.29188132,685.21,684.28,0.349]
[1748505493500,0.29188132,685.21,684.43,0.46117804]
[1748505494105,0.29188132,685.21,684.5,0.46117804]
[1748505494307,0.29188132,685.21,684.49,0.46117804]
[1748505496403,0.29188132,685.21,684.28,0.349]
[1748505496608,0.29188132,685.21,684.49,0.46293233]
[1748505497203,0.29188132,685.21,684.5,0.46293233]
[1748505497508,0.29188132,685.21,684.49,0.46293233]
[1748505497907,0.29188132,685.21,684.5,0.46293233]
[1748505499105,0.29188132,685.21,684.37,0.46293233]
[1748505499908,0.29188132,685.21,684.28,0.349]
[1748505501610,0.29188132,685.21,684.18,0.46293233]
[1748505501809,0.29188132,685.21,684.0,0.25411198]
[1748505501810,0.29188132,685.21,684.19,0.46293233]
[1748505502009,0.29188132,685.21,684.2,0.46293233]
[1748505502609,0.29188132,685.21,684.15,0.46293233]
[1748505503307,0.29188132,685.21,684.16,0.46293233]
[1748505503905,0.29188132,685.21,684.17,0.394]
[1748505505211,0.29188132,685.21,684.17,0.85693233]
[1748505506211,0.29188132,685.21,684.19,0.46293233]
[1748505506614,0.29188132,685.21,684.24,0.46293233]
[1748505508915,0.29188132,685.21,684.42,0.46293233]
[1748505511019,0.29188132,685.21,684.48,0.46293233]
[1748505511218,0.29188132,685.21,684.5,0.46293233]
[1748505512114,0.29188132,685.21,684.49,0.46293233]
[1748505512413,0.29188132,685.21,684.17,0.394]
[1748505512414,0.29188132,685.21,684.66,0.46293233]
[1748505512613,0.29188132,685.21,684.68,0.46293233]
[1748505513418,0.29188132,685.21,684.58,0.46293233]
[1748505514212,0.29188132,685.21,684.56,0.46293233]
[1748505514619,0.29188132,685.21,684.57,0.46293233]
[1748505514816,0.29188132,685.21,684.43,0.46293233]
[1748505515219,0.29188132,685.21,684.34,0.46293233]
[1748505515516,0.29188132,685.21,684.33,0.46293233]
[1748505517231,0.29188132,685.21,684.34,0.46293233]
[1748505518043,0.29188132,685.21,684.33,0.46293233]
[1748505518247,0.29188132,685.21,684.17,0.394]
[1748505518248,0.29188132,685.21,684.34,0.46293233]
[1748505518447,0.29188132,685.21,684.33,0.46293233]
[1748505520758,0.29188132,685.21,684.36,0.46293233]
[1748505520957,0.29188132,685.21,684.33,0.46293233]
[1748505521363,0.29188132,685.21,684.29,0.46293233]
[1748505521761,0.29188132,685.21,684.17,0.394]
[1748505521762,0.29188132,685.21,684.3,0.46293233]
[1748505522156,0.29188132,685.21,684.17,0.394]
[1748505522157,0.29188132,685.21,684.33,0.46293233]
[1748505523063,0.29188132,685.21,684.29,0.46293233]
[1748505525557,0.29188132,685.21,684.24,0.46293233]
[1748505525756,0.29188132,685.21,684.3,0.33]
[1748505528762,0.29188132,685.21,684.31,0.46293233]
[1748505530151,0.29188132,685.21,684.35,0.46293233]
[1748505531735,0.29188132,685.21,684.3,0.33]
[1748505541847,0.29188132,685.21,684.32,0.46293233]
[1748505542045,0.29188132,685.21,684.41,0.46293233]
[1748505543646,0.29188132,685.21,684.4,0.46293233]